[Event "FIDE WSTC Open 50 2025"]
[Site "Prague"]
[Date "2025.02.19"]
[Round "3.38"]
[White "Jackson, Sheila"]
[Black "Schulz, Klaus-Juergen"]
[Result "0-1"]
[Annotator "TA"]
[ECO "B80"]
[WhiteElo "2009"]
[BlackElo "2345"]
[PlyCount "86"]
[EventDate "2025.02.17"]
[EventType "team-tourn"]
[EventCountry "CZE"]
[SourceTitle "playchess.com"]
[Source "ChessBase"]
[SourceQuality "1"]
[TimeControl "40/5400+30:1800+30"]

{[%evp 14,86,13,-5,59,18,27,16,25,3,20,18,17,0,23,28,22,23,27,12,44,29,177,53,71,40,112,3,43,44,86,52,89,61,134,90,147,94,111,112,126,131,135,129,145,94,125,116,237,240,294,102,1181,1166,29986,29987,29989,29990,29990,29963,2328,575,581,581,580,536,509,-29995,-29996,-29996,-29997,-29997,-29998,-29998,-29999]} 1. e4 {[%emt 0:00:01]} c5 {[%emt 0:00:28]} 2. Nf3 {[%emt 0:00:06]} e6 {[%emt 0:00:27]} 3. d4 {[%emt 0:00:13]} cxd4 {[%emt 0:00:19]} 4. Nxd4 {[%emt 0:00:02]} Nf6 {[%emt 0:00:21]} 5. Nc3 {[%emt 0:00:24]} d6 {[%emt 0:00:17]} 6. Be3 {[%emt 0:00:21]} a6 {[%emt 0:02:45]} 7. f3 {[%emt 0:02:13] 7.a3 injects fresh life into this line.} b5 {[%emt 0:15:13]} 8. Qd2 {[%emt 0:02:39]} Bd7 {[%emt 0:12:21] B80: Sicilian Scheveningen: 6 g3 and 6 Be3, including English Attack.} (8... Nbd7 $11) 9. Bd3 {[%emt 0:05:17]} Nc6 {[%emt 0:01:14]} 10. Nxc6 {[%emt 0:04:18]} Bxc6 {[%emt 0:00:06] The position is equal.} 11. O-O-O {[%emt 0:00:39]} Qc7 $146 {[%emt 0:03:47]} ({Predecessor:} 11... b4 12. Ne2 a5 13. Nd4 Bb7 14. g4 Be7 15. h4 d5 16. e5 Nd7 17. f4 Nc5 {1-0 Alba Santana,C-Rodriguez Fernandez,C Las Palmas op 2005 (4.39)}) 12. Kb1 {[%emt 0:00:53]} Be7 {[%emt 0:08:57]} 13. h4 {[%emt 0:21:14]} b4 {[%emt 0:11:48]} 14. Ne2 {[%emt 0:00:09]} d5 {[%emt 0:00:14] [#]} 15. e5 {[%emt 0:05:11]} Nd7 {[%emt 0:00:19]} 16. f4 $36 {[%emt 0:00:39][%mdl 2048] White has the initiative.} Nc5 {[%emt 0:00:46]} 17. Nd4 {[%emt 0:00:45]} Na4 {[%emt 0:04:51]} (17... Bd7 $11 {and Black stays safe.}) 18. Ka1 {[%emt 0:07:32]} ({White should try} 18. f5 $18) 18... Bd7 {[%emt 0:00:24]} 19. h5 {[%emt 0:05:26]} Rb8 {[%emt 0:00:56]} (19... Nc5 $14) 20. Ne2 {[%emt 0:03:01]} (20. Bxa6 Qa5 21. h6 gxh6 $17) (20. f5 $16) 20... Bb5 {[%emt 0:03:16]} 21. Bd4 {[%emt 0:00:50]} Bc5 {[%emt 0:01:21]} 22. Bxb5+ {[%emt 0:08:27]} axb5 {[%emt 0:04:49]} 23. Bxc5 {[%emt 0:03:51]} Qxc5 {[%emt 0:00:16]} (23... Nxc5 $14 24. h6 (24. Qxb4 O-O $16) 24... Ne4 25. hxg7 (25. Qxb4 gxh6 26. Rc1 Rg8 $16) 25... Rg8 26. Qxb4 Rxg7) 24. Rh3 {[%emt 0:00:29][%cal Of4f5]} Ra8 {[%emt 0:08:33]} (24... O-O $142) 25. Rb3 {[%emt 0:00:34]} (25. f5 $142) 25... Qc4 {[%emt 0:05:48] [#]} 26. Nc1 $1 {[%emt 0:04:05][%cal Ob3g3]} (26. Rxb4 Nc3 27. Nxc3 Qxb4 $17) 26... O-O {[%emt 0:04:33]} 27. Rxb4 {[%emt 0:00:38]} (27. Qxb4 Qxc2 28. Qd2 Qc6 $17) 27... Qc6 {[%emt 0:01:45]} 28. Kb1 {[%emt 0:04:26]} Nb6 {[%emt 0:04:46]} 29. b3 {[%emt 0:01:39]} (29. c3 $142) 29... Rfb8 {[%emt 0:00:56]} 30. h6 {[%emt 0:01:35][%cal Bh5h6,Bh6g7][%mdl 32]} Nd7 {[%emt 0:01:08]} (30... g6 $16 {might work better.} 31. Kb2 Qe8) 31. hxg7 $18 {[%emt 0:00:23] Rh1 would now be deadly.} Nc5 {[%emt 0:00:11][%cal Bd7c5,Bc5e4,Be4c3,Bc3d1][%mdl 32]} 32. Qc3 $2 {[%emt 0:10:25]} (32. Rh1 $18 {is more deadly.}) 32... Qb6 $2 {[%emt 0:00:45][%mdl 8192]} (32... Rc8 $16) 33. Rh1 {[%emt 0:01:25]} Ne4 {[%emt 0:01:40]} 34. Qh3 {[%emt 0:00:31][%csl Gh1][%cal Rh3h7]} Kxg7 {[%emt 0:00:10]} 35. Qh6+ {[%emt 0:01:07]} Kg8 {[%emt 0:00:04]} 36. Rh4 {[%emt 0:02:04]} Nc3+ 37. Ka1 {[%emt 0:01:25]} (37. Kb2 $142 {Rg4+ would kill now.} Nd1+ 38. Ka1) 37... Rxa2+ {[%emt 0:00:28]} 38. Nxa2 {[%emt 0:00:21]} Qg1+ {[%emt 0:00:05]} 39. Kb2 {[%emt 0:00:18]} Nd1+ {[%emt 0:01:19]} 40. Ka3 $4 {[%emt 0:00:50][%mdl 8192]} (40. Kc1 $18 Nf2+ 41. Kd2 (41. Kb2 Nd1+ 42. Kc1 Nf2+ 43. Kd2 Qd1+ 44. Ke3 Ng4+ 45. Rxg4+ Qxg4 $18) 41... Qd1+ 42. Ke3 Ng4+ 43. Rxg4+ Qxg4 44. Qg5+ Qxg5 45. fxg5) 40... Ra8+ {[%emt 0:00:15] Black mates.} 41. Ra4 {[%emt 0:30:23]} Qc5+ {[%emt 0:32:34]} 42. Nb4 {[%emt 0:01:15]} Rxa4+ {[%emt 0:00:11]} 43. bxa4 {[%emt 0:00:11]} Qc3+ {[%emt 0:00:07] What a bad dream for White.   Weighted Error Value: White=0.53/Black=0.61  Loses game:     	---       	Black=1      Missed win:     	White=2     	---        Mistake:       	White=4     	Black=5      Inaccurate:     	White=5     	Black=6      OK:         	White=7     	Black=4      Best:        	White=3     	Black=3      Strong:       	White=1     	---} 0-1

[Event "FIDE WSTC Open 50 2025"]
[Site "Prague"]
[Date "2025.02.19"]
[Round "3.39"]
[White "Wolf, Volker"]
[Black "Fink-Nunn, Petra"]
[Result "1-0"]
[Annotator "TA"]
[ECO "C26"]
[WhiteElo "2206"]
[BlackElo "2003"]
[PlyCount "69"]
[EventDate "2025.02.17"]
[EventType "team-tourn"]
[EventCountry "CZE"]
[SourceTitle "playchess.com"]
[Source "ChessBase"]
[SourceQuality "1"]
[TimeControl "40/5400+30:1800+30"]

{[%evp 19,69,18,15,16,39,25,46,47,44,55,48,51,45,48,47,46,49,45,54,55,59,45,49,56,168,175,150,157,250,273,258,266,260,243,374,388,356,152,295,216,298,298,298,287,418,415,576,467,464,464,442,445]} 1. e4 {[%emt 0:00:14]} e5 {[%emt 0:00:09]} 2. Nc3 {[%emt 0:02:21]} Nf6 {[%emt 0:00:13]} 3. g3 {[%emt 0:00:26]} Bc5 {[%emt 0:08:46]} 4. Bg2 {[%emt 0:00:51]} Nc6 {[%emt 0:05:05]} 5. d3 {[%emt 0:00:31]} d6 {[%emt 0:03:04]} 6. h3 {[%emt 0:02:52]} O-O {[%emt 0:09:26]} 7. Na4 {[%emt 0:06:08]} Bb6 {[%emt 0:06:55]} 8. Nxb6 {[%emt 0:01:53]} axb6 {[%emt 0:00:05]} 9. Nf3 {[%emt 0:01:30]} h6 {[%emt 0:03:57]} 10. O-O {[%emt 0:00:23]} Be6 {[%emt 0:04:06][%cal Od8d7]} 11. Re1 {[%emt 0:05:27] C26: Vienna Game: 2...Nf6, sidelines .} Nh7 $146 {[%emt 0:10:04][%cal Od8d7]} ({Predecessor:} 11... Qd7 12. Kh2 b5 13. b3 Rfe8 14. Bb2 Rad8 15. d4 exd4 16. Nxd4 Nxd4 17. Qxd4 c5 {1-0 Siraj,S (2182)-Beber,A (1606) Nova Gorica op 28th 2024 (5)}) 12. d4 {[%emt 0:08:25]} exd4 {[%emt 0:01:31]} 13. Nxd4 {[%emt 0:00:20] White is slightly better.} Nxd4 {[%emt 0:01:52]} 14. Qxd4 {[%emt 0:00:03]} Qf6 {[%emt 0:03:56]} 15. Qxf6 {[%emt 0:05:01]} Nxf6 {[%emt 0:01:32][%cal Bh7f6,Bf6d7,Bd7c5][%mdl 32]} 16. b3 {[%emt 0:00:37]} b5 {[%emt 0:04:05]} 17. Bb2 {[%emt 0:03:02]} Nd7 {[%emt 0:00:48]} 18. f4 {[%emt 0:11:10]} f6 {[%emt 0:00:18]} 19. a3 {[%emt 0:00:58]} Nc5 {[%emt 0:11:19]} 20. Rad1 {[%emt 0:03:01]} Rad8 {[%emt 0:00:25]} 21. Bd4 {[%emt 0:10:30]} Ra8 {[%emt 0:04:16]} (21... Bc8 $14) 22. e5 $18 {[%emt 0:01:34]} fxe5 {[%emt 0:02:01]} 23. fxe5 {[%emt 0:00:20]} Rfe8 {[%emt 0:01:20]} (23... Rae8 $16 24. exd6 cxd6) 24. exd6 {[%emt 0:02:16]} cxd6 {[%emt 0:00:02] [#]} 25. Bxc5 $1 {[%emt 0:01:56]} dxc5 {[%emt 0:00:03]} 26. Bxb7 {[%emt 0:01:07]} Rxa3 {[%emt 0:03:10]} (26... Rab8 $142) 27. Bc6 $1 {[%emt 0:01:20][%csl LRb5,LRe8]} Re7 {[%emt 0:00:01]} 28. Bxb5 {[%emt 0:00:10]} (28. Rd8+ $18 {is the precise move to win.} Kf7 29. Rf1+ Kg6 30. Rd6) 28... Kf7 {[%emt 0:05:55]} (28... Raa7 $16 29. Re5 Bxh3 30. Rd8+ (30. Rxc5 Bg4 $16) 30... Kh7 31. Bd3+ (31. Rxc5 Ra1+ 32. Kh2 Bf1 $16) 31... g6 32. Rxe7+ (32. Rxc5 Ra1+ 33. Kh2 Bf1 $16) 32... Rxe7) 29. Rd2 {[%emt 0:01:41] and Rf2+ should not be overlooked} Raa7 {[%emt 0:04:38] [#]} 30. Rf2+ $1 {[%emt 0:01:37]} Kg8 {[%emt 0:00:24]} 31. Rfe2 {[%emt 0:01:05]} Reb7 {[%emt 0:03:36]} (31... Kf7 $142 32. Rf1+ Kg8 33. Rxe6 Rxe6) 32. Bc6 {[%emt 0:01:19][%cal Oc6b7]} Bxh3 {[%emt 0:00:11]} 33. Bxb7 {[%emt 0:00:09] White is clearly winning.} Rxb7 {[%emt 0:00:01]} 34. Re7 {[%emt 0:00:46]} Rb4 {[%emt 0:00:25]} 35. Rc7 {Weighted Error Value: White=0.18 (very precise) /Black=0.47  Missed win:     	White=1     	---        Mistake:       	---       	Black=5      Inaccurate:     	---       	Black=2      OK:         	White=10    	Black=3      Best:        	White=4     	Black=1      Strong:       	White=2     	---} 1-0

[Event "FIDE WSTC Open 50 2025"]
[Site "Prague"]
[Date "2025.02.19"]
[Round "3.40"]
[White "Frostick, Helen M"]
[Black "Polster, Wolfgang"]
[Result "1/2-1/2"]
[Annotator "TA"]
[ECO "B06"]
[WhiteElo "1880"]
[BlackElo "2131"]
[PlyCount "39"]
[EventDate "2025.02.17"]
[EventType "team-tourn"]
[EventCountry "CZE"]
[SourceTitle "playchess.com"]
[Source "ChessBase"]
[SourceQuality "1"]
[TimeControl "40/5400+30:1800+30"]

{[%evp 15,39,45,58,32,64,25,41,21,68,40,31,15,23,29,19,31,29,12,17,0,6,7,108,27,279,21]} 1. e4 {[%emt 0:00:04]} c6 {[%emt 0:01:04]} 2. d4 {[%emt 0:00:25]} g6 {[%emt 0:00:46]} 3. Nc3 {[%emt 0:01:11]} Bg7 {[%emt 0:03:16]} 4. Nf3 {[%emt 0:15:55]} d6 {[%emt 0:05:21]} 5. Be2 {[%emt 0:09:11]} Nf6 {[%emt 0:03:45]} 6. a4 {[%emt 0:03:55]} a5 {[%emt 0:09:45]} 7. O-O {[%emt 0:01:01]} O-O {[%emt 0:00:23]} 8. h3 {[%emt 0:00:57]} Qc7 {[%emt 0:06:57]} 9. Re1 {[%emt 0:07:23] B08: Pirc Defence: Classical System.} e5 {[%emt 0:03:25]} 10. dxe5 {[%emt 0:01:16]} dxe5 {[%emt 0:00:07]} 11. Be3 {[%emt 0:01:04] White is slightly better.} h6 $146 {[%emt 0:05:37]} (11... Rd8 $11 {is superior.} 12. Qc1 Ne8) (11... Na6 12. Bc4 Nh5 13. Qd2 Nf4 14. Rad1 Be6 15. Bxe6 Nxe6 16. Qd6 Qxd6 17. Rxd6 Nac5 {½-½ Schippel,G (2004)-Privitera,F (1934) St Veit op 43rd 2024 (8)}) 12. Qc1 {[%emt 0:01:44]} Kh7 {[%emt 0:00:31]} 13. Bc5 {[%emt 0:00:36]} Re8 {[%emt 0:08:23]} 14. Rd1 {[%emt 0:03:17]} Bf8 {[%emt 0:02:19] Repels Bd6} 15. Bxf8 {[%emt 0:03:25]} Rxf8 {[%emt 0:00:07]} 16. Qe3 $36 {[%emt 0:01:34][%mdl 2048] White has good play.} Be6 {[%emt 0:03:10]} 17. Rd2 {[%emt 0:01:42]} Nbd7 {[%emt 0:05:06]} 18. Rad1 {[%emt 0:00:41]} Ne8 {[%emt 0:00:59]} (18... Kg7 $11 {remains equal.}) 19. Nh2 {[%emt 0:09:48] White is much more active.} (19. Bc4 $1 $16 {[%cal Rc4e6] Bxe6 would now be deadly.} Nef6 20. Bxe6 fxe6 21. Qd3) 19... Qb6 $2 {[%emt 0:03:59][%mdl 8192] [#]} (19... Nef6 $11 {and Black has nothing to worry.}) 20. Qxb6 $2 {[%emt 0:01:15] Weighted Error Value: White=0.23 (precise) /Black=0.59  Loses game:     	---       	Black=1      Missed win:     	White=1     	---        Mistake:       	White=1     	Black=2      Inaccurate:     	White=2     	Black=1      OK:         	White=3     	Black=4} ({White has to play} 20. Rxd7 $18 Qxe3 21. fxe3 Bxd7 22. Rxd7) 1/2-1/2

[Event "FIDE WSTC Open 50 2025"]
[Site "Prague"]
[Date "2025.02.20"]
[Round "4.1"]
[White "David, Alberto"]
[Black "Adams, Michael"]
[Result "1/2-1/2"]
[Annotator "TA"]
[ECO "E20"]
[WhiteElo "2467"]
[BlackElo "2664"]
[PlyCount "52"]
[EventDate "2025.02.17"]
[EventType "team-tourn"]
[EventCountry "CZE"]
[SourceTitle "playchess.com"]
[Source "ChessBase"]
[SourceQuality "1"]
[TimeControl "40/5400+30:1800+30"]

{[%evp 12,52,14,10,10,4,12,0,6,2,14,0,12,-4,2,-8,-8,-8,-2,-34,-26,-37,-24,-36,0,-51,0,0,0,0,4,0,0,-7,38,34,38,26,48,30,33,13,27]} 1. d4 {[%emt 0:00:05]} Nf6 {[%emt 0:00:07]} 2. c4 {[%emt 0:00:05]} e6 {[%emt 0:00:05]} 3. Nc3 {[%emt 0:00:09]} Bb4 {[%emt 0:00:08]} 4. f3 {[%emt 0:00:21]} d5 {[%emt 0:00:35]} 5. a3 {[%emt 0:00:26]} Bxc3+ {[%emt 0:00:06]} 6. bxc3 {[%emt 0:00:05]} c6 {[%emt 0:00:06]} 7. e3 {[%emt 0:12:55] 7.e4 is the hot move.} O-O {[%emt 0:00:26] E20: Nimzo-Indian: 4 g3 and 4 f3.} 8. Bd3 {[%emt 0:04:04]} dxc4 {[%emt 0:03:34]} 9. Bxc4 {[%emt 0:00:14]} c5 {[%emt 0:00:11]} 10. Ne2 {[%emt 0:01:37]} Qc7 {[%emt 0:00:21]} 11. Bd3 {[%emt 0:04:31]} Nc6 {[%emt 0:00:45]} 12. O-O $146 {[%emt 0:03:58]} ({Predecessor:} 12. e4 e5 13. d5 Na5 14. O-O b6 15. Kh1 c4 16. Bc2 Nb7 17. f4 Bg4 18. h3 Bxe2 19. Qxe2 {½-½ Suraj,D (1909)-Ekaaksha,P (1767) New Delhi Matrix Cup 4th 2025 (5)}) 12... e5 {[%emt 0:17:05]} 13. Bb2 {[%emt 0:19:35]} Rd8 {[%emt 0:05:57]} 14. Qe1 {[%emt 0:04:20]} Be6 {[%emt 0:05:03]} 15. Kh1 {[%emt 0:22:43]} Qb6 {[%emt 0:09:53]} 16. Bc1 {[%emt 0:11:34]} cxd4 {[%emt 0:09:36]} 17. Rb1 {[%emt 0:03:53]} Qa5 {[%emt 0:05:29] [#]} 18. Rb5 {[%emt 0:04:54]} (18. cxd4 $11 Qxe1 19. Rxe1) 18... Qa4 {[%emt 0:04:33]} (18... Qc7 $15 19. cxd4 exd4 20. exd4 Nxd4) 19. cxd4 $11 {[%emt 0:00:18]} exd4 {[%emt 0:02:48]} 20. Rxb7 {[%emt 0:01:23]} dxe3 {[%emt 0:11:30]} 21. Bb5 {[%emt 0:01:07]} Qc2 {[%emt 0:00:07]} 22. Bxe3 {[%emt 0:01:00]} Bc4 {[%emt 0:00:57][%cal Od8e8] [#] White must now prevent ...Re8!.} 23. Bxc6 {[%emt 0:01:45][%cal Oe1c1] This pair of bishops is nice.} Bxe2 {[%emt 0:01:18]} 24. Qc1 {[%emt 0:00:16]} Qd3 {[%emt 0:04:40]} 25. Re1 {[%emt 0:00:02][%cal Ob7b2] Rb2! is the strong threat.} Rac8 $1 {[%emt 0:00:17]} 26. Rb2 {[%emt 0:00:19]} (26. Bxa7 $2 {loses.} Qa6 27. Qc5 (27. Bb6 $2 Rd6 $19) 27... Rxc6 $19 (27... Qxc6 28. Qxc6 Rxc6 29. Rxe2 $17)) (26. Qc5 $5) 26... Qa6 {[%emt 0:05:37] Weighted Error Value: White=0.11 (very precise) /Black=0.12 (very precise)   Mistake:       	White=1     	Black=1      Inaccurate:     	White=1     	Black=2      OK:         	White=8     	Black=8      Best:        	---       	Black=2      Strong:       	---       	Black=1} 1/2-1/2

[Event "FIDE WSTC Open 50 2025"]
[Site "Prague"]
[Date "2025.02.20"]
[Round "4.3"]
[White "Bellini, Fabio"]
[Black "Hebden, Mark L"]
[Result "1/2-1/2"]
[Annotator "TA"]
[ECO "C55"]
[WhiteElo "2408"]
[BlackElo "2363"]
[PlyCount "90"]
[EventDate "2025.02.17"]
[EventType "team-tourn"]
[EventCountry "CZE"]
[SourceTitle "playchess.com"]
[Source "ChessBase"]
[SourceQuality "1"]
[TimeControl "40/5400+30:1800+30"]

{[%evp 11,90,23,16,12,25,24,23,23,28,16,12,12,16,18,21,-14,31,29,37,-14,-9,-8,-15,-7,-6,-13,27,-7,4,-19,-21,-27,-18,-32,-17,-39,-18,-27,-30,-28,-27,-27,-20,-20,0,-8,0,-5,0,-6,0,0,0,0,16,18,31,35,59,59,59,59,47,6,6,6,6,6,6,6,6,8,8,0,0,0,0,0,0,0,2]} 1. e4 {[%emt 0:00:04]} e5 {[%emt 0:00:27]} 2. Nf3 {[%emt 0:00:10]} Nc6 {[%emt 0:00:07]} 3. Bc4 {[%emt 0:00:16]} Nf6 {[%emt 0:00:20]} 4. d3 {[%emt 0:00:11]} Be7 {[%emt 0:00:41]} 5. O-O {[%emt 0:00:52]} O-O {[%emt 0:01:06]} 6. Nc3 {[%emt 0:00:35]} d6 {[%emt 0:00:21]} 7. a4 $1 {[%emt 0:00:39][%mdl 4] is currently scoring better than 7.h3. C55: Two Knights: 4 d3, 4 d4 exd4 5 e5 and Max Lange Attack.} Na5 {[%emt 0:02:33]} 8. Ba2 {[%emt 0:00:22]} c5 {[%emt 0:00:15]} 9. Bg5 {[%emt 0:03:12] White has an edge.} Nc6 {[%emt 0:00:47]} 10. Bxf6 {[%emt 0:01:30]} Bxf6 {[%emt 0:00:06]} 11. Nd5 {[%emt 0:00:26]} g6 {[%emt 0:00:18]} 12. c3 {[%emt 0:02:42]} Bg7 {[%emt 0:00:20]} 13. b4 $146 {[%emt 0:03:39][%cal Bb2b4,Bb4b5][%mdl 32]} ({Predecessor:} 13. Qd2 Bg4 14. Qe3 Rc8 15. h3 Be6 16. Rfc1 Ne7 17. Nxe7+ Qxe7 18. Bxe6 Qxe6 19. b4 {0-1 Firouzja,A (2763)-So,W (2747) Wch Blitz Final 2024 (1.4)}) 13... Kh8 {[%emt 0:01:25]} 14. b5 {[%emt 0:21:49]} Ne7 {[%emt 0:02:05]} 15. d4 {[%emt 0:01:22]} (15. Qd2 $14) 15... exd4 $11 {[%emt 0:11:02]} 16. cxd4 {[%emt 0:00:51]} Bg4 {[%emt 0:05:08]} 17. dxc5 {[%emt 0:02:00]} dxc5 {[%emt 0:07:38]} 18. Rc1 {[%emt 0:10:21]} Rc8 {[%emt 0:03:13]} 19. Re1 {[%emt 0:05:25]} b6 {[%emt 0:06:26]} 20. Rc2 {[%emt 0:04:32]} Nxd5 {[%emt 0:02:03]} 21. Bxd5 {[%emt 0:00:33]} Qe7 {[%emt 0:01:50]} 22. Qd3 {[%emt 0:05:01]} Rfd8 {[%emt 0:01:12]} 23. Ree2 {[%emt 0:04:41]} Qf6 {[%emt 0:04:24]} 24. h3 {[%emt 0:03:52]} Bxf3 {[%emt 0:17:32]} 25. Qxf3 {[%emt 0:01:07]} Qxf3 {[%emt 0:01:18]} (25... Qa1+ {feels hotter.} 26. Kh2 Qxa4 27. Qxf7 Qxb5 28. Qxa7 c4) 26. gxf3 {[%emt 0:00:05]} Rc7 {[%emt 0:00:26]} 27. Rc4 {[%emt 0:03:39]} Bd4 {[%emt 0:02:58]} 28. a5 {[%emt 0:03:06]} f5 {[%emt 0:01:42]} 29. axb6 {[%emt 0:01:36]} axb6 {[%emt 0:00:06]} 30. Ra2 {[%emt 0:01:18]} fxe4 {[%emt 0:00:25] Opposite bishops and equal position} 31. fxe4 {[%emt 0:00:33]} Rf8 {[%emt 0:00:17]} 32. Kg2 {[%emt 0:02:21]} Re7 {[%emt 0:00:48]} 33. Rca4 {[%emt 0:01:29]} Rf6 {[%emt 0:01:46]} 34. f3 {[%emt 0:02:33]} h5 {[%emt 0:02:08]} 35. Ra7 $1 {[%emt 0:03:17]} Rxa7 {[%emt 0:03:48]} 36. Rxa7 $14 {[%emt 0:00:03][%mdl 4096] Endgame KRB-KRB} g5 {[%emt 0:00:30]} 37. h4 {[%emt 0:03:54]} gxh4 {[%emt 0:00:31] The position is equal.} 38. Kh3 {[%emt 0:00:12]} c4 {[%emt 0:02:11]} 39. Bxc4 {[%emt 0:04:08]} Rxf3+ {[%emt 0:00:44]} 40. Kxh4 {[%emt 0:01:22]} Rf4+ {[%emt 0:00:15]} 41. Kg5 {[%emt 0:34:36]} Rxe4 {[%emt 0:32:01] [#] aiming for ...Be3+.} 42. Kg6 {[%emt 0:00:00][%csl Gg6][%cal Ra7h7]} Rg4+ {[%emt 0:00:00]} 43. Kxh5 {[%emt 0:00:00]} Rg3 {[%emt 0:00:00]} 44. Rd7 {[%emt 0:00:00]} Be3 {[%emt 0:00:00]} 45. Rd8+ {[%emt 0:00:00]} Kh7 {[%emt 0:00:00] Weighted Error Value: White=0.09 (flawless) /Black=0.08 (flawless)   Mistake:       	White=1     	---        Inaccurate:     	White=3     	Black=2      OK:         	White=13    	Black=14     Best:        	White=1     	Black=3      Strong:       	White=1     	---} 1/2-1/2